bitfinex-derivatives/quotes_BTCF0:USTF0_20250207
["timestamp","ask_amount","ask_price","bid_price","bid_amount"]
[1738887229820,0.01027508,96856.0,96855.0,0.206484]
[1738887230217,0.00015488,96856.0,96855.0,0.206484]
[1738887230728,0.00415488,96856.0,96855.0,0.206484]
[1738887233219,0.00415488,96856.0,96854.0,0.3608]
[1738887233407,0.00415488,96856.0,96847.0,0.0426]
[1738887233717,0.00415488,96856.0,96846.0,0.55135999]
[1738887233718,0.21063848,96856.0,96846.0,0.55135999]
[1738887234021,0.0426,96855.0,96846.0,0.54991999]
[1738887234323,0.0426,96855.0,96854.0,0.18427929]
[1738887237410,0.0426,96855.0,96846.0,0.55139999]
[1738887237611,0.0426,96855.0,96846.0,0.54991999]
[1738887237810,0.4034,96855.0,96846.0,0.54991999]
[1738887238024,0.0426,96855.0,96846.0,0.54991999]
[1738887238228,0.0426,96855.0,96846.0,0.18911999]
[1738887239516,0.2065005,96848.0,96846.0,0.18911999]
[1738887239719,0.2065005,96848.0,96845.0,0.18427929]
[1738887239921,0.4034,96855.0,96845.0,0.18427929]
[1738887240819,0.4034,96855.0,96841.0,0.18427929]
[1738887241015,0.12297211,96851.0,96841.0,0.18427929]
[1738887241525,0.2064957,96850.0,96841.0,0.18427929]
[1738887242122,0.2064999,96848.0,96841.0,0.18427929]
[1738887242517,0.12297211,96851.0,96841.0,0.18427929]
[1738887242823,0.3608,96842.0,96841.0,0.18427929]
[1738887244016,0.3608,96842.0,96837.0,0.00015488]
[1738887244220,0.2065202,96838.0,96837.0,0.00015488]
[1738887246324,0.0488,96841.0,96837.0,0.00015488]
[1738887246522,0.0488,96840.0,96837.0,0.00015488]
[1738887247920,0.0488,96840.0,96837.0,0.00115488]
[1738887249230,0.0488,96840.0,96837.0,0.00015488]
[1738887250425,0.2065202,96838.0,96837.0,0.00015488]
[1738887251028,0.0488,96840.0,96837.0,0.00015488]
[1738887251937,0.206519,96839.0,96837.0,0.00015488]
[1738887252136,0.248019,96839.0,96837.0,0.00015488]
[1738887253934,0.044,96838.0,96837.0,0.00015488]
[1738887254633,0.37071986,96842.0,96837.0,0.00015488]
[1738887254835,0.0488,96841.0,96837.0,0.00015488]
[1738887256728,0.2065202,96838.0,96837.0,0.00015488]
[1738887257242,0.1091339,96838.0,96837.0,0.00215488]
[1738887257628,0.1091339,96838.0,96837.0,0.00015488]
[1738887258027,0.2065366,96831.0,96826.0,0.3608]
[1738887259935,0.3608,96834.0,96819.0,0.08435488]
[1738887260141,0.2065586,96820.0,96819.0,0.06609357]
[1738887260341,0.2065586,96820.0,96819.0,0.00015488]
[1738887260538,0.2553586,96820.0,96819.0,0.00015488]
[1738887261940,0.2553586,96820.0,96819.0,0.00215488]
[1738887263039,0.2553586,96820.0,96819.0,0.00015488]
[1738887264345,0.12297211,96818.0,96808.0,0.0433]
[1738887264643,0.3608,96809.0,96808.0,0.0433]
[1738887265744,0.3608,96809.0,96808.0,0.0473]
[1738887266144,0.3608,96809.0,96808.0,0.0433]
[1738887266336,0.12297211,96818.0,96808.0,0.0473]
[1738887266935,0.3608,96813.0,96808.0,0.004]
[1738887267144,0.2065793,96811.0,96808.0,0.004]
[1738887267442,0.2065793,96811.0,96808.0,0.005]
[1738887268040,0.3608,96813.0,96808.0,0.005]
[1738887268230,0.12297211,96818.0,96808.0,0.005]
[1738887268432,0.3608,96813.0,96808.0,0.005]
[1738887268636,0.2065757,96812.0,96808.0,0.005]
[1738887270243,0.2065757,96812.0,96808.0,0.004]
[1738887270443,0.2065757,96812.0,96808.0,0.005]
[1738887271042,0.3608,96813.0,96808.0,0.004]
[1738887271248,0.3608,96813.0,96808.0,0.005]
[1738887271549,0.12297211,96818.0,96808.0,0.005]
[1738887272839,0.01009664,96820.0,96815.0,0.3608]
[1738887273054,0.15316837,96823.0,96816.0,0.2065659]
[1738887273349,0.16321681,96823.0,96816.0,0.2065659]
[1738887274747,0.16321681,96823.0,96816.0,0.39668589]
[1738887275052,0.16321681,96823.0,96816.0,0.19111999]
[1738887275243,0.206557,96821.0,96816.0,0.19111999]
[1738887275550,0.206557,96821.0,96816.0,0.19511999]
[1738887276255,0.206557,96821.0,96816.0,0.19311999]
[1738887276949,0.206557,96821.0,96816.0,0.19211999]
[1738887277550,0.01004844,96823.0,96816.0,0.19011999]
[1738887277739,0.32951131,96830.0,96816.0,0.19011999]
[1738887279238,0.13317776,96830.0,96816.0,0.19011999]
[1738887280847,0.33971606,96830.0,96816.0,0.19011999]
[1738887281248,0.49397776,96830.0,96816.0,0.19011999]
[1738887281453,0.3608,96820.0,96816.0,0.19011999]
[1738887281750,0.2065645,96818.0,96816.0,0.19011999]
[1738887282051,0.11226278,96818.0,96816.0,0.19011999]
[1738887283155,0.11226278,96818.0,96816.0,0.19111999]
[1738887283555,0.11226278,96818.0,96816.0,0.002]
[1738887284057,0.11226278,96818.0,96816.0,0.001]
[1738887284452,0.2065481,96825.0,96816.0,0.001]
[1738887285346,0.2065536,96823.0,96816.0,0.001]
[1738887285949,0.3608,96821.0,96816.0,0.001]
[1738887286655,0.2065597,96820.0,96816.0,0.001]
[1738887291459,0.3608,96821.0,96816.0,0.001]
[1738887293055,0.3608,96821.0,96807.0,0.3608]
[1738887293251,0.12297211,96820.0,96816.0,0.001]
[1738887293455,0.3608,96821.0,96816.0,0.001]
[1738887294964,0.3608,96821.0,96811.0,0.2065771]
[1738887295360,0.3608,96821.0,96816.0,0.001]
[1738887296461,0.15316837,96825.0,96817.0,0.206565]
[1738887298960,0.13317776,96830.0,96816.0,0.3648]
[1738887299154,0.2065414,96829.0,96816.0,0.3618]
[1738887299361,0.2065414,96829.0,96817.0,0.009]
[1738887299562,0.2065414,96829.0,96817.0,0.013]
[1738887300259,0.12297211,96830.0,96817.0,0.009]
[1738887300565,0.52433968,96834.0,96817.0,0.009]
[1738887301157,0.52433968,96834.0,96817.0,0.2165643]
[1738887301361,0.32950951,96830.0,96818.0,0.18911999]
[1738887301655,0.52433968,96834.0,96825.0,0.2065469]
[1738887301857,0.52433968,96834.0,96826.0,0.043]
[1738887302055,0.37117131,96834.0,96826.0,0.043]
[1738887302655,0.01037131,96834.0,96833.0,0.5673309]
[1738887302860,0.15316837,96835.0,96833.0,0.5673309]
[1738887304164,0.15316837,96835.0,96833.0,0.3608]
[1738887304365,0.35969647,96835.0,96833.0,0.3608]
[1738887304869,0.2065288,96834.0,96833.0,0.002]
[1738887305567,0.2065288,96834.0,96833.0,0.006]
[1738887305868,0.26553803,96836.0,96833.0,0.006]
[1738887306065,0.3608,96834.0,96833.0,0.004]
[1738887306259,0.2065416,96828.0,96827.0,0.18088364]
[1738887306459,0.2065416,96828.0,96827.0,0.15735364]
[1738887306669,0.3608,96829.0,96821.0,0.2543066]
[1738887306862,0.3608,96822.0,96815.0,0.34899616]
[1738887307167,0.2065672,96816.0,96815.0,0.26979486]
[1738887307366,0.2553672,96816.0,96815.0,0.23779486]
[1738887308369,0.2553672,96816.0,96815.0,0.23879486]
[1738887309171,0.2553672,96816.0,96815.0,0.001]
[1738887309359,0.0488,96816.0,96815.0,0.001]
[1738887311078,0.2553672,96816.0,96815.0,0.001]
[1738887311374,0.05907469,96816.0,96794.0,0.18911999]
[1738887311575,0.2065938,96804.0,96794.0,0.18911999]
[1738887312475,0.3608,96805.0,96787.0,0.00154965]
[1738887312681,0.3608,96793.0,96787.0,0.00154965]
[1738887313379,0.2066184,96792.0,96787.0,0.00154965]
[1738887313674,0.2066269,96788.0,96787.0,0.00154965]
[1738887313880,0.1122494,96788.0,96787.0,0.00154965]
[1738887314084,0.3608,96793.0,96788.0,0.001]
[1738887315572,0.3628,96793.0,96788.0,0.001]
[1738887315770,0.3628,96793.0,96787.0,0.001]
[1738887315973,0.01238302,96793.0,96787.0,0.001]
[1738887316286,0.01238302,96793.0,96788.0,0.2487269]
[1738887316781,0.01338302,96793.0,96788.0,0.2487269]
[1738887316981,0.01338302,96793.0,96788.0,0.0421]
[1738887317485,0.01238302,96793.0,96788.0,0.0431]
[1738887317781,0.01238302,96793.0,96788.0,0.001]
[1738887318079,0.2066198,96792.0,96788.0,0.001]
[1738887318776,0.2066198,96792.0,96788.0,0.003]
[1738887319372,0.2086198,96792.0,96788.0,0.001]
[1738887319579,0.2066245,96790.0,96788.0,0.001]
[1738887320089,0.2066262,96789.0,96787.0,0.18911999]
[1738887321587,0.2066262,96789.0,96756.0,0.61988]
[1738887321588,0.2066564,96775.0,96766.0,0.18911999]
[1738887321883,0.01038302,96793.0,96766.0,0.18911999]
[1738887321884,0.12297211,96776.0,96766.0,0.18911999]
[1738887322590,0.12312708,96780.0,96766.0,0.18911999]
[1738887322883,0.2066495,96778.0,96766.0,0.19711999]
[1738887323082,0.2066538,96776.0,96766.0,0.19711999]
[1738887323275,0.2066588,96774.0,96766.0,0.19711999]
[1738887324590,0.13353898,96780.0,96766.0,0.19711999]
[1738887325093,0.3608,96776.0,96766.0,0.19711999]
[1738887325282,0.3608,96776.0,96766.0,0.19111999]
[1738887325484,0.3608,96776.0,96766.0,0.19711999]
[1738887325881,0.3608,96776.0,96766.0,0.19111999]
[1738887326083,0.3608,96776.0,96766.0,0.19711999]
[1738887326283,0.5674538,96776.0,96766.0,0.19711999]
[1738887327796,0.5674538,96776.0,96766.0,0.19511999]
[1738887328692,0.5674538,96776.0,96766.0,0.18911999]
[1738887328990,0.3608,96776.0,96766.0,0.19111999]
[1738887329184,0.01056687,96780.0,96774.0,0.2066554]
[1738887329390,0.01056687,96780.0,96775.0,0.0401]
[1738887330083,0.2066372,96784.0,96775.0,0.0401]
[1738887330084,0.3608,96797.0,96780.0,0.2066423]
[1738887330294,0.3608,96797.0,96788.0,0.3608]
[1738887330295,0.15457105,96797.0,96788.0,0.3608]
[1738887330594,0.15457105,96797.0,96792.0,0.206617]
[1738887331284,0.16484529,96797.0,96792.0,0.206617]
[1738887331480,0.15457105,96797.0,96796.0,0.5674098]
[1738887331680,0.18297633,96803.0,96800.0,0.2066012]
[1738887331885,0.18297633,96803.0,96801.0,0.1217]
[1738887332893,0.18797633,96803.0,96801.0,0.3282975]
[1738887333084,0.18797633,96803.0,96801.0,0.1217]
[1738887333290,0.206597,96802.0,96801.0,0.1217]
[1738887334693,0.2066075,96798.0,96796.0,0.18911999]
[1738887335088,0.001,96802.0,96796.0,0.18911999]
[1738887335686,0.006,96802.0,96796.0,0.18911999]
[1738887336088,0.001,96798.0,96796.0,0.18911999]
[1738887336284,0.2066077,96797.0,96796.0,0.18911999]
[1738887336797,0.001,96798.0,96796.0,0.18911999]
[1738887336989,0.3608,96800.0,96790.0,0.0806]
[1738887337186,0.3608,96792.0,96790.0,0.0806]
[1738887338701,0.37098345,96792.0,96790.0,0.0806]
[1738887338888,0.37298345,96792.0,96790.0,0.0806]
[1738887339396,0.003,96792.0,96790.0,0.2872214]
[1738887343093,0.16267018,96807.0,96800.0,0.2066001]
[1738887343294,0.18297633,96813.0,96802.0,0.2065957]
[1738887343492,0.18297633,96813.0,96805.0,0.2065888]
[1738887343493,0.19339245,96813.0,96805.0,0.2065888]
[1738887343695,0.19339245,96813.0,96809.0,0.5673807]
[1738887343897,0.19339245,96813.0,96810.0,0.2886786]
[1738887344105,0.01041612,96813.0,96810.0,0.2886786]
[1738887344292,0.2065603,96820.0,96810.0,0.0821]
[1738887344495,0.2065603,96820.0,96810.0,0.27121999]
[1738887344804,0.2065603,96820.0,96817.0,0.2065648]
[1738887345499,0.00015497,96821.0,96818.0,0.2065613]
[1738887345701,0.00015497,96821.0,96820.0,0.2065586]
[1738887346796,0.00015497,96821.0,96820.0,0.39567859]
[1738887348008,0.00015497,96821.0,96820.0,0.39967859]
[1738887348796,0.00015497,96821.0,96820.0,0.40067859]
[1738887349301,0.00154988,96824.0,96820.0,0.40067859]
[1738887349302,0.00154988,96824.0,96820.0,0.19411999]
[1738887349501,0.00154963,96840.0,96839.0,0.2065181]
[1738887351906,0.00454963,96840.0,96839.0,0.2065181]
[1738887352408,0.00454963,96840.0,96837.0,0.0844]
[1738887352409,0.21106593,96840.0,96837.0,0.0844]
[1738887353911,0.00354963,96840.0,96837.0,0.2909218]
[1738887354110,0.00354963,96840.0,96839.0,0.2065181]
[1738887354703,0.002,96840.0,96839.0,0.2065181]
[1738887354903,0.002,96840.0,96839.0,0.39563809]
[1738887355213,0.00015497,96849.0,96848.0,0.2064989]
[1738887355415,0.00015497,96849.0,96848.0,0.5672989]
[1738887355609,0.3608,96865.0,96863.0,0.2064651]
[1738887355808,0.37095312,96865.0,96863.0,0.2064651]
[1738887357710,0.37195312,96865.0,96863.0,0.2074651]
[1738887359012,0.37195312,96865.0,96863.0,0.001]
[1738887360807,0.37195312,96865.0,96864.0,0.18911999]
[1738887362321,0.37195312,96865.0,96864.0,0.19011999]
[1738887362510,0.01115312,96865.0,96864.0,0.55091999]
[1738887363012,0.21761582,96865.0,96864.0,0.19011999]
[1738887363415,0.01115312,96865.0,96864.0,0.19011999]
[1738887366921,0.01115312,96865.0,96864.0,0.39658479]
[1738887367122,0.001,96865.0,96864.0,0.39658479]
[1738887367622,0.08335488,96874.0,96867.0,0.2064568]
[1738887368615,0.08335488,96874.0,96868.0,0.18911999]
[1738887368817,0.00115488,96874.0,96873.0,0.3608]
[1738887371214,0.00015488,96874.0,96873.0,0.3608]
[1738887371416,0.00115488,96874.0,96873.0,0.3608]
[1738887372822,0.00115488,96874.0,96873.0,0.6608]
[1738887373027,0.0421,96898.0,96885.0,0.20642]
[1738887373329,0.1,96900.0,96885.0,0.3608]
[1738887373529,0.2063923,96898.0,96896.0,0.3608]
[1738887374923,0.2063923,96898.0,96896.0,0.3618]
[1738887375323,0.2063923,96898.0,96896.0,0.001]
[1738887375519,0.3608,96897.0,96896.0,0.001]
[1738887376120,0.25248245,96897.0,96896.0,0.001]
[1738887377819,0.30124245,96897.0,96887.0,0.00015488]
[1738887378024,0.30124245,96897.0,96867.0,0.3900768]
[1738887378025,0.2064371,96877.0,96868.0,0.18911999]
[1738887379548,0.2064544,96869.0,96867.0,0.00015488]
[1738887380830,0.2064691,96862.0,96861.0,0.13730516]
[1738887381026,0.3608,96862.0,96836.0,0.18911999]
[1738887381223,0.3608,96862.0,96841.0,0.24506246]
[1738887381224,0.2065044,96846.0,96841.0,0.24506246]
[1738887381725,0.3608,96850.0,96841.0,0.24506246]
[1738887381917,0.3608,96842.0,96841.0,0.24506246]
[1738887383120,0.5673117,96842.0,96841.0,0.24506246]
[1738887383316,0.5693117,96842.0,96841.0,0.24506246]
[1738887384423,0.5703117,96842.0,96841.0,0.24506246]
[1738887384731,0.3638,96842.0,96841.0,0.24506246]
[1738887384926,0.3628,96842.0,96841.0,0.24506246]
[1738887385526,0.2065138,96841.0,96836.0,0.18911999]
[1738887385826,0.3628,96842.0,96836.0,0.18911999]
[1738887386128,0.3628,96842.0,96841.0,0.005]
[1738887386521,0.002,96842.0,96839.0,0.3608]
[1738887386718,0.002,96842.0,96840.0,0.2065142]
[1738887387628,0.001,96842.0,96841.0,0.18911999]
[1738887387819,0.2064572,96868.0,96841.0,0.19011999]
[1738887388021,0.2064602,96867.0,96852.0,0.3608]
[1738887388227,0.01031751,96859.0,96852.0,0.3608]
[1738887388627,0.01031751,96859.0,96852.0,0.5672904]
[1738887389230,0.01031751,96859.0,96852.0,0.5682904]
[1738887389823,0.00115488,96853.0,96852.0,0.5732904]
[1738887390421,0.00115488,96853.0,96852.0,0.76241039]
[1738887391032,0.00115488,96853.0,96852.0,0.76441039]
[1738887391328,0.00015488,96853.0,96852.0,0.76441039]
[1738887391524,0.00115488,96853.0,96852.0,0.76441039]
[1738887391725,0.00115488,96853.0,96852.0,0.76241039]
[1738887391923,0.00115488,96853.0,96852.0,0.76441039]
[1738887392528,0.00115488,96853.0,96852.0,0.76241039]
[1738887392830,0.00115488,96853.0,96852.0,0.76341039]
[1738887393232,0.00115488,96853.0,96852.0,0.55691999]
[1738887394136,0.00115488,96853.0,96852.0,0.55591999]
[1738887394439,0.00015488,96853.0,96852.0,0.55191999]
[1738887394641,0.00015488,96853.0,96852.0,0.55791999]
[1738887395030,0.00015488,96853.0,96852.0,0.55091999]
[1738887395337,0.00015488,96853.0,96852.0,0.55591999]
[1738887395738,0.00015488,96853.0,96852.0,0.55491999]
[1738887395937,0.00015488,96853.0,96852.0,0.55591999]
[1738887396533,0.00015488,96853.0,96852.0,0.3668]
[1738887397734,0.00015488,96853.0,96852.0,0.3618]
[1738887398040,0.00015488,96853.0,96852.0,0.3668]
[1738887398235,0.3608,96879.0,96852.0,0.3668]
[1738887398436,0.3608,96879.0,96871.0,0.2064499]
[1738887399741,0.00015488,96881.0,96871.0,0.2064499]
[1738887400645,0.00015488,96881.0,96880.0,0.2064307]
[1738887400837,0.00015488,96881.0,96880.0,0.5672307]
[1738887401841,0.00015488,96881.0,96880.0,0.3608]
[1738887402048,0.00215488,96881.0,96880.0,0.3608]
[1738887402237,0.00615488,96881.0,96880.0,0.3608]
[1738887402838,0.10802151,96882.0,96880.0,0.3608]
[1738887403537,0.01021679,96887.0,96880.0,0.3608]
[1738887403736,0.12297211,96890.0,96880.0,0.3608]
[1738887404340,0.004,96882.0,96881.0,0.2064282]
[1738887404937,0.0140186,96890.0,96881.0,0.2064282]
[1738887405244,0.2064174,96887.0,96880.0,0.3608]
[1738887405644,0.004,96882.0,96880.0,0.3608]
[1738887407148,0.2064174,96887.0,96880.0,0.3608]
[1738887407543,0.0120186,96890.0,96880.0,0.3608]
[1738887407734,0.002,96882.0,96880.0,0.3608]
[1738887408539,0.002,96887.0,96871.0,0.18911999]
[1738887408735,0.2064359,96878.0,96871.0,0.18911999]
[1738887410150,0.2064393,96876.0,96871.0,0.18911999]
[1738887410346,0.0777,96879.0,96871.0,0.18911999]
[1738887411447,0.0777,96879.0,96859.0,0.2064735]
[1738887412050,0.206439,96877.0,96859.0,0.2064735]
[1738887412247,0.567239,96877.0,96859.0,0.2064735]
[1738887412653,0.567239,96877.0,96862.0,0.00115488]
[1738887413343,0.08766804,96879.0,96862.0,0.00115488]
[1738887413540,0.08766804,96879.0,96862.0,0.21062228]
[1738887413850,0.2064669,96863.0,96862.0,0.00415488]
[1738887414553,0.2064669,96863.0,96862.0,0.00115488]
[1738887414853,0.2064669,96863.0,96862.0,0.00415488]
[1738887415444,0.69037659,96872.0,96862.0,0.00415488]
[1738887415643,0.20660448,96872.0,96862.0,0.00415488]
[1738887416250,0.20660448,96872.0,96862.0,0.00315488]
[1738887416845,0.2064514,96871.0,96862.0,0.00215488]
[1738887417045,0.2064591,96867.0,96862.0,0.00215488]
[1738887417349,0.2064591,96867.0,96862.0,0.00015488]
[1738887417653,0.00015488,96872.0,96862.0,0.00315488]
[1738887418055,0.00015488,96872.0,96862.0,0.00215488]
[1738887418752,0.12312699,96872.0,96862.0,0.00215488]
[1738887418953,0.20646,96867.0,96862.0,0.00215488]
[1738887419339,0.2064638,96865.0,96862.0,0.00215488]
[1738887419638,0.12312699,96872.0,96862.0,0.00215488]
[1738887419639,0.2064667,96864.0,96862.0,0.00215488]
[1738887420646,0.01025985,96864.0,96850.0,0.18911999]
[1738887420849,0.2065077,96844.0,96840.0,0.24506246]
[1738887421047,0.12297211,96850.0,96840.0,0.24506246]
[1738887421253,0.2065123,96842.0,96840.0,0.24506246]
[1738887421851,0.2065123,96842.0,96840.0,0.24806246]
[1738887422657,0.2065123,96842.0,96840.0,0.24506246]
[1738887423654,0.3608,96845.0,96838.0,0.00154893]
[1738887423851,0.2065181,96839.0,96838.0,0.00154893]
[1738887424244,0.038,96841.0,96838.0,0.00154893]
[1738887424651,0.001,96842.0,96838.0,0.00154893]
[1738887425855,0.001,96842.0,96838.0,0.00254893]
[1738887426443,0.3608,96845.0,96838.0,0.00254893]
[1738887426648,0.3608,96845.0,96838.0,0.00554893]
[1738887427047,0.3608,96845.0,96838.0,0.00254893]
[1738887427355,0.3608,96845.0,96838.0,0.00654893]
[1738887427356,0.2065171,96840.0,96838.0,0.00654893]
[1738887427565,0.2065171,96840.0,96838.0,0.00754893]
[1738887429055,0.04876,96839.0,96838.0,0.00754893]
[1738887429250,0.04876,96839.0,96838.0,0.00254893]
[1738887429445,0.04876,96839.0,96838.0,0.00554893]
[1738887429858,0.04876,96839.0,96838.0,0.00254893]
[1738887430761,0.2065171,96840.0,96838.0,0.00154893]
[1738887430762,0.04884,96840.0,96838.0,0.00154893]
[1738887431661,0.2553574,96840.0,96838.0,0.00154893]
[1738887431854,0.26549044,96840.0,96838.0,0.00154893]
[1738887432461,0.26549044,96840.0,96838.0,0.00254893]
[1738887432762,0.26549044,96840.0,96838.0,0.00554893]
[1738887433157,0.16224274,96840.0,96838.0,0.00254893]
[1738887433453,0.16224274,96840.0,96838.0,0.00354893]
[1738887433647,0.01013304,96840.0,96838.0,0.00354893]
[1738887433958,0.3608,96845.0,96838.0,0.00154893]
[1738887434659,0.3608,96845.0,96838.0,0.00254893]
[1738887435559,0.3608,96845.0,96838.0,0.00354893]
[1738887435953,0.37121406,96845.0,96838.0,0.00354893]
[1738887436967,0.2065181,96839.0,96838.0,0.00354893]
[1738887437152,0.2065181,96839.0,96838.0,0.00254893]
[1738887437761,0.2065181,96839.0,96838.0,0.00354893]
[1738887439654,0.2065181,96839.0,96838.0,0.00154893]
[1738887439860,0.57772136,96845.0,96838.0,0.00154893]
[1738887440053,0.2065085,96844.0,96838.0,0.00154893]
[1738887440254,0.37121406,96845.0,96838.0,0.00154893]
[1738887440458,0.2065161,96840.0,96838.0,0.00354893]
[1738887440853,0.2065161,96840.0,96838.0,0.00154893]
[1738887441457,0.206533,96832.0,96831.0,0.00015488]
[1738887441657,0.206533,96832.0,96811.0,0.18911999]
[1738887441658,0.3608,96832.0,96811.0,0.18911999]
[1738887441855,0.3608,96818.0,96805.0,0.0783]
[1738887442053,0.3608,96808.0,96799.0,0.18911999]
[1738887442259,0.3608,96808.0,96792.0,0.18911999]
[1738887442465,0.3984,96808.0,96787.0,0.116]
[1738887442862,0.3984,96808.0,96798.0,0.00015488]
[1738887443064,0.3984,96808.0,96807.0,0.25406246]
[1738887443762,0.3994,96808.0,96807.0,0.25406246]
[1738887444266,0.3994,96808.0,96807.0,0.25706246]
[1738887445066,0.3994,96808.0,96807.0,0.012]
[1738887445860,0.40986791,96808.0,96807.0,0.012]
[1738887447162,0.40886791,96808.0,96798.0,0.00015488]
[1738887447367,0.53184002,96808.0,96787.0,0.116]
[1738887447567,0.12297211,96797.0,96784.0,0.00154967]
[1738887447765,0.0392,96796.0,96784.0,0.00154967]
[1738887447965,0.2066274,96788.0,96784.0,0.00154967]
[1738887448264,0.3608,96786.0,96784.0,0.00154967]
[1738887448471,0.2066377,96783.0,96774.0,0.1197]
[1738887448665,0.2066377,96783.0,96775.0,0.00015496]
[1738887449964,0.2076377,96783.0,96775.0,0.00915496]
[1738887451069,0.2076377,96783.0,96775.0,0.01315496]
[1738887452470,0.01012585,96783.0,96775.0,0.00715496]
[1738887452671,0.12297211,96784.0,96775.0,0.00715496]
[1738887452969,0.12297211,96784.0,96775.0,0.00415496]
[1738887453171,0.12297211,96784.0,96775.0,0.00815496]
[1738887453370,0.5674525,96776.0,96775.0,0.00815496]
[1738887453876,0.5674525,96776.0,96775.0,0.00415496]
[1738887454980,0.3608,96776.0,96775.0,0.00415496]
[1738887455181,0.3608,96776.0,96775.0,0.00015496]
[1738887455381,0.3608,96776.0,96775.0,0.00315496]
[1738887455784,0.3608,96776.0,96775.0,0.00115496]
[1738887457378,0.2066514,96777.0,96775.0,0.00115496]
[1738887457586,0.0488,96783.0,96775.0,0.00115496]
[1738887457779,0.3608,96777.0,96775.0,0.00115496]
[1738887459092,0.01024265,96784.0,96778.0,0.2066469]
[1738887459283,0.3608,96786.0,96781.0,0.206641]
[1738887459483,0.3608,96786.0,96782.0,0.0407]
[1738887460589,0.3618,96786.0,96782.0,0.0407]
[1738887460891,0.372232,96786.0,96782.0,0.0407]
[1738887461276,0.372232,96786.0,96783.0,0.206636]
[1738887461586,0.00015496,96795.0,96794.0,0.2066141]
[1738887461790,0.00155043,96796.0,96794.0,0.5674141]
[1738887462686,0.15368089,96818.0,96794.0,0.3608]
[1738887462878,0.15368089,96818.0,96813.0,0.3608]
[1738887463187,0.05091849,96818.0,96814.0,0.0395]
[1738887463584,0.2065683,96816.0,96813.0,0.3608]
[1738887463786,0.2065711,96815.0,96813.0,0.3608]
[1738887464187,0.2065711,96815.0,96811.0,0.3608]
[1738887464387,0.06230643,96818.0,96811.0,0.3608]
[1738887464994,0.06230643,96818.0,96812.0,0.0412]
[1738887465982,0.06230643,96818.0,96813.0,0.0441]
[1738887466188,0.06130643,96818.0,96814.0,0.001]
[1738887466390,0.01038794,96818.0,96814.0,0.001]
[1738887466583,0.48392707,96824.0,96813.0,0.0441]
[1738887467387,0.36095496,96824.0,96814.0,0.2075698]
[1738887468098,0.37109696,96824.0,96814.0,0.001]
[1738887468297,0.2065666,96817.0,96814.0,0.001]
[1738887468892,0.2065666,96817.0,96813.0,0.0441]
[1738887469092,0.2065666,96817.0,96813.0,0.0451]
[1738887469400,0.49406907,96824.0,96813.0,0.0451]
[1738887469586,0.49406907,96824.0,96814.0,0.001]
[1738887470091,0.49406907,96824.0,96813.0,0.0451]
[1738887470498,0.2065582,96821.0,96813.0,0.0451]
[1738887470689,0.2065582,96821.0,96814.0,0.001]
[1738887472302,0.2065582,96821.0,96813.0,0.0451]
[1738887472895,0.2065582,96821.0,96813.0,0.0441]
[1738887473499,0.2065582,96821.0,96813.0,0.0451]
[1738887473700,0.49406907,96824.0,96813.0,0.0451]
[1738887476093,0.01029696,96824.0,96819.0,0.3608]
[1738887476306,0.01029696,96824.0,96822.0,0.2065531]
[1738887477099,0.01029696,96824.0,96823.0,0.0438]
[1738887477789,0.01129696,96824.0,96823.0,0.0438]
[1738887479096,0.01029696,96824.0,96823.0,0.0438]
[1738887479304,0.01329696,96824.0,96823.0,0.0438]
[1738887479501,0.01329696,96824.0,96819.0,0.3608]
[1738887479502,0.2065586,96820.0,96819.0,0.3608]
[1738887480601,0.206567,96817.0,96812.0,0.0412]
[1738887480803,0.01329696,96824.0,96801.0,0.2065987]
[1738887480804,0.2065859,96808.0,96801.0,0.0417]
[1738887481502,0.2065769,96812.0,96802.0,0.3608]
[1738887482200,0.12297211,96816.0,96802.0,0.3608]
[1738887482401,0.2065827,96809.0,96806.0,0.00115496]
[1738887482799,0.12297211,96816.0,96806.0,0.00115496]
[1738887483106,0.2065864,96807.0,96806.0,0.00115496]
[1738887483905,0.3608,96809.0,96792.0,0.00154961]
[1738887484110,0.5674098,96796.0,96792.0,0.00154961]
[1738887486405,0.3608,96796.0,96792.0,0.00154961]
[1738887486605,0.3618,96796.0,96792.0,0.00154961]
[1738887487610,0.001,96796.0,96792.0,0.00154961]
[1738887487811,0.01112794,96796.0,96792.0,0.00154961]
[1738887488003,0.01212794,96796.0,96792.0,0.00154961]
[1738887488607,0.01112794,96796.0,96792.0,0.00154961]
[1738887489002,0.01012794,96796.0,96795.0,0.00204181]
[1738887489197,0.246986,96808.0,96795.0,0.00204181]
[1738887489410,0.0488,96807.0,96795.0,4.181e-05]
[1738887489613,0.0488,96807.0,96795.0,0.00204181]
[1738887490505,0.25717439,96808.0,96797.0,0.2066065]
[1738887490706,0.21677439,96808.0,96797.0,0.2066065]
[1738887490912,0.01018839,96808.0,96799.0,0.2066016]
[1738887491102,0.12297211,96810.0,96796.0,0.3608]
[1738887491313,0.12297211,96810.0,96800.0,0.2066]
[1738887491613,0.2065937,96804.0,96796.0,0.3608]
[1738887491917,0.2065937,96804.0,96795.0,0.00204181]
[1738887491918,0.3608,96808.0,96795.0,0.00204181]
[1738887492217,0.2066074,96798.0,96795.0,0.00604181]
[1738887492710,0.3608,96808.0,96796.0,0.002]
[1738887492914,0.2065887,96806.0,96796.0,0.002]
[1738887493214,0.2065887,96806.0,96795.0,0.20665271]
[1738887493413,0.13300171,96810.0,96798.0,0.3608]
[1738887493613,0.13300171,96810.0,96801.0,0.2065977]
[1738887493805,0.13300171,96810.0,96798.0,0.3608]
[1738887494315,0.33958331,96810.0,96798.0,0.3608]
[1738887494615,0.33958331,96810.0,96796.0,0.002]
[1738887494616,0.2066077,96797.0,96796.0,0.002]
[1738887494913,0.2066291,96787.0,96779.0,0.3608]
[1738887496311,0.109422,96787.0,96786.0,0.00215496]
[1738887496508,0.109422,96787.0,96786.0,0.00315496]
[1738887497013,0.110422,96787.0,96786.0,0.01015496]
[1738887497916,0.002,96787.0,96786.0,0.00815496]
[1738887498606,0.002,96787.0,96786.0,0.00015496]
[1738887499015,0.001,96787.0,96786.0,0.00015496]
[1738887499613,0.01041941,96787.0,96786.0,0.00115496]
[1738887499817,0.1295,96793.0,96786.0,0.00115496]
[1738887500005,0.0442,96793.0,96786.0,0.00115496]
[1738887500208,0.01047165,96793.0,96789.0,0.3608]
[1738887500506,0.00015496,96796.0,96795.0,0.206612]
[1738887501217,0.00015496,96796.0,96795.0,0.289912]